Workbook

Sheet Sumcost Exhibits
B3: Sumcost | C3: AVISTA UTILITIES | I3: Natural Gas Utility
B4: Company Base Case UG-15____ | C4: Cost of Service General Summary | I4: Washington Jurisdiction
C5: For the Twelve Months Ended September 30, 2014
B7: (b) | C7: (c) | D7: (d) | E7: (e) | F7: (f) | G7: (g) | H7: (h) | I7: (i) | J7: (j) | K7: (k)
G8: General | H8: Large General | I8: High Load Factor | J8: Interruptible | K8: Transportation
F9: System | G9: Service | H9: Service | I9: Lg. Gen. Service | J9: Service | K9: Service
B10: Description | F10: Total | G10: Sch 101 | H10: Sch 111/112 | I10: Sch 121/122 | J10: Sch 131/132 | K10: Sch 146
B11: Plant In Service
A12: 1 | B12: Production Plant
A13: 2 | B13: Underground Storage Plant | F13: =SUM(G13:K13) -> 26321000 | G13: 17795141.86 | H13: 7007301.325 | I13: 845381.3655 | J13: 164461.9505 | K13: 508713.5012
A14: 3 | B14: Distribution Plant | F14: =SUM(G14:K14) -> 372002000 | G14: 290409017.1 | H14: 56131351.96 | I14: 5062712.038 | J14: 893923.227 | K14: 19504995.65
A15: 4 | B15: Intangible Plant | F15: =SUM(G15:K15) -> 11586000 | G15: 9854044.489 | H15: 1242755.509 | I15: 107279.1822 | J15: 19775.62748 | K15: 362145.1919
A16: 5 | B16: General Plant | F16: =SUM(G16:K16) -> 78856000 | G16: 68116675.38 | H16: 7803418.062 | I16: 664851.9556 | J16: 124144.5768 | K16: 2146910.022
A17: 6 | B17: Total Plant In Service | F17: =SUM(F13:F16) -> 488765000 | G17: 386174878.9 | H17: 72184826.85 | I17: 6680224.541 | J17: 1202305.382 | K17: 22522764.36
B19: Accum Depreciation
A20: 7 | B20: Production Plant
A21: 8 | B21: Underground Storage Plant | F21: =SUM(G21:K21) -> -10268000 | G21: -6942005.114 | H21: -2733595.608 | I21: -329788.9845 | J21: -64157.71845 | K21: -198452.5751
A22: 9 | B22: Distribution Plant | F22: =SUM(G22:K22) -> -126984000 | G22: -100641233.3 | H22: -18076140.17 | I22: -1650891.565 | J22: -286846.8284 | K22: -6328888.166
A23: 10 | B23: Intangible Plant | F23: =SUM(G23:K23) -> -4439000 | G23: -3821236.585 | H23: -447530.9782 | I23: -38249.49324 | J23: -7120.167573 | K23: -124862.7759
A24: 11 | B24: General Plant | F24: =SUM(G24:K24) -> -20944000 | G24: -18091656.3 | H24: -2072572.637 | I24: -176583.3844 | J24: -32972.55778 | K24: -570215.1199
A25: 12 | B25: Total Accumulated Depreciation | F25: =SUM(F21:F24) -> -162635000 | G25: -129496131.3 | H25: -23329839.39 | I25: -2195513.427 | J25: -391097.2722 | K25: -7222418.637
A27: 13 | B27: Net Plant | F27: =F17+F25 -> 326130000 | G27: 256678747.6 | H27: 48854987.46 | I27: 4484711.114 | J27: 811208.1095 | K27: 15300345.73
A28: 14 | B28: Accumlulated Deferred FIT | F28: =SUM(G28:K28) -> -70703000 | G28: -55862679.32 | H28: -10441999.35 | I28: -966337.4336 | J28: -173921.2043 | K28: -3258062.686
A29: 15 | B29: Miscellaneous Rate Base | F29: =SUM(G29:K29) -> 30659000 | G29: 22674350.04 | H29: 6108569.436 | I29: 661069.2005 | J29: 124966.1508 | K29: 1090045.173
A30: 16 | B30: Total Rate Base | F30: =SUM(F27:F29) -> 286086000 | G30: 223490418.3 | H30: 44521557.54 | I30: 4179442.881 | J30: 762253.056 | K30: 13132328.21
A32: 17 | B32: Revenue From Retail Rates | F32: =SUM(G32:K32) -> 169307000 | G32: 123589925 | H32: 38270136.71 | I32: 4136331.592 | J32: 733817.1536 | K32: 2576789.516
A33: 18 | B33: Other Operating Revenues | F33: =SUM(G33:K33) -> 1884000 | G33: 1471774.612 | H33: 293136.9086 | I33: 27511.44225 | J33: 5016.628983 | K33: 86560.40796
A34: 19 | B34: Total Revenues | F34: =SUM(F32:F33) -> 171191000 | G34: 125061699.6 | H34: 38563273.62 | I34: 4163843.035 | J34: 738833.7826 | K34: 2663349.924
B36: Operating Expenses
A37: 20 | B37: Purchased Gas Costs | F37: =SUM(G37:K37) -> 88734000 | G37: 61342452.75 | H37: 24044893.77 | I37: 2795833.536 | J37: 512777.6433 | K37: 38042.30401
A38: 21 | B38: Underground Storage Expenses | F38: 858000 | G38: 580077.9497 | H38: 228420.8251 | I38: 27557.35768 | J38: 5361.055944 | K38: 16582.8116
A39: 22 | B39: Distribution Expenses | F39: 11992000 | G39: 9593648.473 | H39: 1691633.622 | I39: 137052.9148 | J39: 26791.56679 | K39: 542873.423
A40: 23 | B40: Customer Accounting Expenses | F40: 6794000 | G40: 6424128.541 | H40: 323375.1836 | I40: 25452.44316 | J40: 4402.025035 | K40: 16641.8073
A41: 24 | B41: Customer Information Expenses | F41: 966000 | G41: 949268.8683 | H41: 16297.89454 | I41: 178.391783 | J41: 12.74227022 | K41: 242.1031341
A42: 25 | B42: Sales Expenses | F42: 1000 | G42: 982.6799879 | H42: 16.87152643 | I42: 0.1846705829 | J42: 0.01319075592 | K42: 0.2506243624
A43: 26 | B43: Admin & General Expenses | F43: 13722000.02 | G43: 11777014.58 | H43: 1421047.413 | I43: 123509.6914 | J43: 22954.20982 | K43: 377474.1242
A44: 27 | B44: Total O&M Expenses | F44: =SUM(F37:F43) -> 123067000 | G44: 90667573.84 | H44: 27725685.57 | I44: 3109584.52 | J44: 572299.2564 | K44: 991856.8239
A46: 28 | B46: Taxes Other Than Income Taxes | F46: =SUM(G46:K46) -> 10146000 | G46: 7536602.206 | H46: 2089582.177 | I46: 219037.8627 | J46: 38974.48214 | K46: 261803.2725
A47: 29 | B47: Depreciation Expense
A48: 30 | B48: Underground Storage Plant Depr | F48: =SUM(G48:K48) -> 423000 | G48: 285982.4857 | H48: 112613.0641 | I48: 13585.97005 | J48: 2643.03807 | K48: 8175.44208
A49: 31 | B49: Distribution Plant Depreciation | F49: =SUM(G49:K49) -> 9579000 | G49: 7515475.916 | H49: 1426057.876 | I49: 126273.4583 | J49: 22588.26304 | K49: 488604.4871
A50: 32 | B50: General Plant Depreciation | F50: =SUM(G50:K50) -> 5841000 | G50: 5045519.693 | H50: 578012.642 | I50: 49246.73167 | J50: 9195.603036 | K50: 159025.3302
A51: 33 | B51: Amortization of Intangible Plant | F51: =SUM(G51:K51) -> 2936000 | G51: 2536148.916 | H51: 290540.1673 | I51: 24754.04968 | J51: 4622.203478 | K51: 79934.66348
A52: 34 | B52: Total Depr & Amort Expense | F52: =SUM(F48:F51) -> 18779000 | G52: 15383127.01 | H52: 2407223.749 | I52: 213860.2097 | J52: 39049.10763 | K52: 735739.9228
A53: 35 | B53: Income Tax | F53: =SUM(G53:K53) -> 5312000 | G53: 2514336.789 | H53: 2382759.698 | I53: 235803.6649 | J53: 31490.37402 | K53: 147609.474
A54: 36 | B54: Total Operating Expenses | F54: =F44+F46+F52+F53 -> 157304000 | G54: 116101639.8 | H54: 34605251.2 | I54: 3778286.257 | J54: 681813.2202 | K54: 2137009.493
A56: 37 | B56: Net Income | F56: =F34-F54 -> 13886999.98 | G56: 8960059.796 | H56: 3958022.417 | I56: 385556.7775 | J56: 57020.56243 | K56: 526340.4312
A58: 38 | B58: Rate of Return | F58: =F56/F30 -> 0.04854134765 | G58: 0.04009147177 | H58: 0.08890125672 | I58: 0.0922507589 | J58: 0.07480529199 | K58: 0.04007974996
A59: 39 | B59: Return Ratio | F59: =F58/$F58 -> 1 | G59: 0.8259241597 | H59: 1.831454235 | I59: 1.900457308 | J59: 1.541063353 | K59: 0.8256826788
A61: 40 | B61: Interest Expense | F61: =SUM(G61:K61) -> 7753000 | G61: 6056644.551 | H61: 1206545.01 | I61: 113263.9159 | J61: 20657.24273 | K61: 355889.2803
K63: Page 1 of 4
B64: =$B$3 -> Sumcost | C64: =$C$3 -> AVISTA UTILITIES | I64: =$I$3 -> Natural Gas Utility
B65: =$B$4 -> Company Base Case UG-15____ | C65: Summary by Function with Margin Analysis | I65: =$I$4 -> Washington Jurisdiction
C66: =$C$5 -> For the Twelve Months Ended September 30, 2014
B68: =$B$7 -> (b) | C68: =$C$7 -> (c) | D68: =$D$7 -> (d) | E68: =$E$7 -> (e) | F68: =$F$7 -> (f) | G68: =$G$7 -> (g) | H68: =$H$7 -> (h) | I68: =$I$7 -> (i) | J68: =$J$7 -> (j) | K68: =$K$7 -> (k)
F69: =F8 ->  | G69: General | H69: Large General | I69: High Load Factor | J69: Interruptible | K69: Transportation
F70: System | G70: Service | H70: Service | I70: Lg. Gen. Service | J70: Service | K70: Service
B71: =$B$10 -> Description | F71: Total | G71: Sch 101 | H71: Sch 111/112 | I71: Sch 121/122 | J71: Sch 131/132 | K71: Sch 146
B73: Functional Cost Components at Current Rates
A74: 1 | B74: Production | F74: =SUM(G74:K74) -> 93359893.47 | G74: 64540366.2 | H74: 25298405.58 | I74: 2941586.327 | J74: 539509.8402 | K74: 40025.5308
A75: 2 | B75: Underground Storage | F75: =SUM(G75:K75) -> 3543529.211 | G75: 1900819.342 | H75: 1387470.299 | I75: 172678.5088 | J75: 28233.07491 | K75: 54327.98615
A76: 3 | B76: Distribution | F76: =SUM(G76:K76) -> 45077044.82 | G76: 34335349.17 | H76: 8167801.722 | I76: 723205.7687 | J76: 114785.3785 | K76: 1735902.771
A77: 4 | B77: Common | F77: =SUM(G77:K77) -> 27326532.5 | G77: 22813390.32 | H77: 3416459.108 | I77: 298860.9881 | J77: 51288.86001 | K77: 746533.2281
A78: 5 | B78: Total Current Rate Revenue | F78: =SUM(F74:F77) -> 169307000 | G78: 123589925 | H78: 38270136.71 | I78: 4136331.592 | J78: 733817.1536 | K78: 2576789.516
A79: 6 | B79: Exclude Cost of Gas w / Revenue Exp. | F79: =SUM(G79:K79) -> 92447694.91 | G79: 63923178.82 | H79: 25059879.57 | I79: 2913232.816 | J79: 534029.1641 | K79: 17374.53128
A80: 7 | B80: Total Margin Revenue at Current Rates | F80: =F78-F79 -> 76859305.09 | G80: 59666746.21 | H80: 13210257.13 | I80: 1223098.776 | J80: 199787.9895 | K80: 2559414.985
B82: Margin per Therm at Current Rates
A83: 8 | B83: Production | F83: 0.004434825767 | G83: 0.005112484761 | H83: 0.005017661817 | I83: 0.004943910638 | J83: 0.00491230299 | K83: 0.0007407079756
A84: 9 | B84: Underground Storage | F84: 0.01568881706 | G84: 0.01807245216 | H84: 0.01807245216 | I84: 0.01807245216 | J84: 0.01807245216 | K84: 0.002039546218
A85: 10 | B85: Distribution | F85: 0.2191045291 | G85: 0.304845244 | H85: 0.1214949467 | I85: 0.08566521999 | J85: 0.08061312527 | K85: 0.06243885816
A86: 11 | B86: Common | F86: 0.1344378686 | G86: 0.1969323254 | H86: 0.05909681748 | I86: 0.0420491772 | J86: 0.04024291563 | K86: 0.02561006533
A87: 12 | B87: Total Current Margin Melded Rate per Therm | F87: =SUM(F83:F86) -> 0.3736660405 | G87: 0.5249625063 | H87: 0.2036818782 | I87: 0.15073076 | J87: 0.143840796 | K87: 0.09082917769
B89: Functional Cost Components at Uniform Current Return
A90: 13 | B90: Production | F90: =SUM(G90:K90) -> 93359893.47 | G90: 64540366.2 | H90: 25298405.58 | I90: 2941586.327 | J90: 539509.8402 | K90: 40025.5308
A91: 14 | B91: Underground Storage | F91: =SUM(G91:K91) -> 3227030.146 | G91: 2181735.467 | H91: 859115.2547 | I91: 103646.1818 | J91: 20163.50716 | K91: 62369.73534
A92: 15 | B92: Distribution | F92: =SUM(G92:K92) -> 45067573.77 | G92: 36801407.74 | H92: 5775539.544 | I92: 491293.2062 | J92: 89940.38631 | K92: 1909392.895
A93: 16 | B93: Common | F93: =SUM(G93:K93) -> 27652502.61 | G93: 23773986.79 | H93: 2809302.078 | I93: 241153.5871 | J93: 44899.18194 | K93: 783160.9712
A94: 17 | B94: Total Uniform Current Cost | F94: =SUM(F90:F93) -> 169307000 | G94: 127297496.2 | H94: 34742362.45 | I94: 3777679.302 | J94: 694512.9156 | K94: 2794949.132
A95: 18 | B95: Exclude Cost of Gas w / Revenue Exp. | F95: =SUM(G95:K95) -> 92447694.91 | G95: 63923178.82 | H95: 25059879.57 | I95: 2913232.816 | J95: 534029.1641 | K95: 17374.53128
A96: 19 | B96: Total Uniform Current Margin | F96: =F94-F95 -> 76859305.09 | G96: 63374317.37 | H96: 9682482.882 | I96: 864446.4856 | J96: 160483.7515 | K96: 2777574.601
B98: Margin per Therm at Uniform Current Return
A99: 20 | B99: Production | F99: 0.004434825767 | G99: 0.005112484761 | H99: 0.005017661817 | I99: 0.004943910638 | J99: 0.00491230299 | K99: 0.0007407079756
A100: 21 | B100: Underground Storage | F100: 0.01568881706 | G100: 0.01807245216 | H100: 0.01807245216 | I100: 0.01807245216 | J100: 0.01807245216 | K100: 0.002039546218
A101: 22 | B101: Distribution | F101: 0.2191045291 | G101: 0.304845244 | H101: 0.1214949467 | I101: 0.08566521999 | J101: 0.08061312527 | K101: 0.06243885816
A102: 23 | B102: Common | F102: 0.1344378686 | G102: 0.1969323254 | H102: 0.05909681748 | I102: 0.0420491772 | J102: 0.04024291563 | K102: 0.02561006533
A103: 24 | B103: Total Current Uniform Margin Melded Rate per Therm | F103: =SUM(F99:F102) -> 0.3736660405 | G103: 0.5249625063 | H103: 0.2036818782 | I103: 0.15073076 | J103: 0.143840796 | K103: 0.09082917769
A105: 25 | B105: Margin to Cost Ratio at Current Rates | F105: =F80/F96 -> 1 | G105: 0.9414972607 | H105: 1.364346036 | I105: 1.414892416 | J105: 1.244911012 | K105: 0.9214567933
B108: Functional Cost Components at Proposed Rates
A109: 26 | B109: Production | F109: =SUM(G109:K109) -> 93336265.22 | G109: 64524031.81 | H109: 25292002.86 | I109: 2940841.847 | J109: 539373.2968 | K109: 40015.40082
A110: 27 | B110: Underground Storage | F110: =SUM(G110:K110) -> 4557255.17 | G110: 2649446.092 | H110: 1604034.261 | I110: 194078.0664 | J110: 33591.45328 | K110: 76105.29751
A111: 28 | B111: Distribution | F111: =SUM(G111:K111) -> 53182586.02 | G111: 40902799.31 | H111: 9147873.033 | I111: 795060.8891 | J111: 131275.9732 | K111: 2205576.815
A112: 29 | B112: Common | F112: =SUM(G112:K112) -> 30251893.59 | G112: 25369200.81 | H112: 3664861.555 | I112: 316710.7899 | J112: 55524.43041 | K112: 845596.0032
A113: 30 | B113: Total Proposed Rate Revenue | F113: =SUM(F109:F112) -> 181328000 | G113: 133445478 | H113: 39708771.71 | I113: 4246691.592 | J113: 759765.1536 | K113: 3167293.516
A114: 31 | B114: Exclude Cost of Gas w / Revenue Exp. | F114: =SUM(G114:K114) -> 92424297.52 | G114: 63907000.64 | H114: 25053537.22 | I114: 2912495.512 | J114: 533894.0078 | K114: 17370.134
A115: 32 | B115: Total Margin Revenue at Proposed Rates | F115: =F113-F114 -> 88903702.48 | G115: 69538477.39 | H115: 14655234.49 | I115: 1334196.08 | J115: 225871.1458 | K115: 3149923.382
B117: Margin per Therm at Proposed Rates
A118: 33 | B118: Production | F118: 0.004433703366 | G118: 0.005111190853 | H118: 0.005016391908 | I118: 0.004942659394 | J118: 0.004911059746 | K118: 0.0007405205114
A119: 34 | B119: Underground Storage | F119: 0.02215595747 | G119: 0.02194674307 | H119: 0.03374265825 | I119: 0.03384076971 | J119: 0.03010785413 | K119: 0.002488711406
A120: 35 | B120: Distribution | F120: 0.2585571951 | G120: 0.3388192083 | H120: 0.1924357609 | I120: 0.1386322162 | J120: 0.1176620082 | K120: 0.07212433767
A121: 36 | B121: Common | F121: 0.1470752992 | G121: 0.2101463147 | H121: 0.07709446988 | I121: 0.05522384422 | J121: 0.0497662735 | K121: 0.02765174681
A122: 37 | B122: Total Proposed Margin Melded Rate per Therm | F122: =SUM(F118:F121) -> 0.4322221552 | G122: 0.5760234569 | H122: 0.3082892809 | I122: 0.2326394895 | J122: 0.2024471955 | K122: 0.1030053164
B124: Functional Cost Components at Uniform Proposed Return
A125: 38 | B125: Production | F125: =SUM(G125:K125) -> 93336265.22 | G125: 64524031.81 | H125: 25292002.86 | I125: 2940841.847 | J125: 539373.2968 | K125: 40015.40082
A126: 39 | B126: Underground Storage | F126: =SUM(G126:K126) -> 4282389.487 | G126: 2895244.421 | H126: 1140078.019 | I126: 137542.353 | J126: 26757.72683 | K126: 82766.96742
A127: 40 | B127: Distribution | F127: =SUM(G127:K127) -> 53172424.53 | G127: 43060571.76 | H127: 7047192.853 | I127: 605130.4211 | J127: 110235.9514 | K127: 2349293.55
A128: 41 | B128: Common | F128: =SUM(G128:K128) -> 30536920.78 | G128: 26209711.51 | H128: 3131708.145 | I128: 269449.9017 | J128: 50113.32122 | K128: 875937.9011
A129: 42 | B129: Total Uniform Proposed Cost | F129: =SUM(F125:F128) -> 181328000 | G129: 136689559.5 | H129: 36610981.87 | I129: 3952964.523 | J129: 726480.2962 | K129: 3348013.819
A130: 43 | B130: Exclude Cost of Gas w / Revenue Exp. | F130: =SUM(G130:K130) -> 92424297.52 | G130: 63907000.64 | H130: 25053537.22 | I130: 2912495.512 | J130: 533894.0078 | K130: 17370.134
A131: 44 | B131: Total Uniform Proposed Margin | F131: =F129-F130 -> 88903702.5 | G131: 72782558.86 | H131: 11557444.65 | I131: 1040469.01 | J131: 192586.2885 | K131: 3330643.685
B133: Margin per Therm at Uniform Proposed Return
A134: 45 | B134: Production | F134: 0.004433703366 | G134: 0.005111190853 | H134: 0.005016391908 | I134: 0.004942659394 | J134: 0.004911059746 | K134: 0.0007405205114
A135: 46 | B135: Underground Storage | F135: 0.020819646 | G135: 0.02398281876 | H135: 0.02398281876 | I135: 0.02398281876 | J135: 0.02398281876 | K135: 0.00270655398
A136: 47 | B136: Distribution | F136: 0.2585077931 | G136: 0.3566931623 | H136: 0.1482455992 | I136: 0.1055146499 | J136: 0.09880394031 | K136: 0.07682400364
A137: 48 | B137: Common | F137: 0.1484610128 | G137: 0.2171087029 | H137: 0.06587899041 | I137: 0.04698311479 | J137: 0.04491632299 | K137: 0.02864395406
A138: 49 | B138: Total Proposed Uniform Margin Melded Rate per Therm | F138: =SUM(F134:F137) -> 0.4322221552 | G138: 0.6028958748 | H138: 0.2431238003 | I138: 0.1814232428 | J138: 0.1726141418 | K138: 0.1089150322
A140: 50 | B140: Margin to Cost Ratio at Proposed Rates | F140: =F115/F131 -> 0.9999999998 | G140: =G115/G131 -> 0.9554277629 | H140: 1.268034148 | I140: 1.282302564 | J140: 1.172830878 | K140: 0.9457401272
A142: 51 | B142: Current Margin to Proposed Cost Ratio | F142: =F80/F131 -> 0.8645231068 | G142: =G80/G131 -> 0.8197945654 | H142: =H80/H131 -> 1.14300847 | I142: 1.175526387 | J142: 1.037394672 | K142: 0.7684445492
K144: Page 2 of 4
B145: =B3 -> Sumcost | C145: =C3 -> AVISTA UTILITIES | I145: =I3 -> Natural Gas Utility
B146: =B4 -> Company Base Case UG-15____ | C146: Summary by Classification with Unit Cost Analysis | I146: =I4 -> Washington Jurisdiction
C147: =C5 -> For the Twelve Months Ended September 30, 2014 | K147: =K5 -> 
B149: =B7 -> (b) | C149: (c) | D149: (d) | E149: (e) | F149: (f) | G149: (g) | H149: (h) | I149: (i) | J149: (j) | K149: (k)
F150: =F8 ->  | G150: General | H150: Large General | I150: High Load Factor | J150: Interruptible | K150: Transportation
F151: System | G151: Service | H151: Service | I151: Lg. Gen. Service | J151: Service | K151: Service
B152: =B10 -> Description | F152: Total | G152: Sch 101 | H152: Sch 111/112 | I152: Sch 121/122 | J152: Sch 131/132 | K152: Sch 146
B154: Cost by Classification at Current Return by Schedule
A155: 1 | B155: Commodity | F155: =SUM(G155:K155) -> 87622833.77 | G155: 58286180.77 | H155: 24856393.57 | I155: 3014131.195 | J155: 536728.4683 | K155: 929399.758
A156: 2 | B156: Demand | F156: =SUM(G156:K156) -> 37767940.76 | G156: 24540575.72 | H156: 10603848.69 | I156: 1045266.903 | J156: 168949.3808 | K156: 1409300.07
A157: 3 | B157: Customer | F157: =SUM(G157:K157) -> 44248782.95 | G157: 41095726.02 | H157: 2809894.447 | I157: 76933.49383 | J157: 28139.30458 | K157: 238089.6884
A158: 4 | B158: Total Current Rate Revenue | F158: =SUM(F155:F157) -> 169639557.5 | G158: 123922482.5 | H158: 38270136.71 | I158: 4136331.592 | J158: 733817.1536 | K158: 2576789.516
B160: Revenue per Therm at Current Rates
A161: 5 | B161: Commodity | F161: 0.4259949698 | G161: 0.4828148185 | H161: 0.5228820943 | I161: 0.5255643852 | J161: 0.4810670826 | K161: 0.03039220467
A162: 6 | B162: Demand | F162: 0.1836159833 | G162: 0.2032823811 | H162: 0.2230638405 | I162: 0.1822598361 | J162: 0.1514284978 | K162: 0.04608537478
A163: 7 | B163: Customer | F163: 0.2151238227 | G163: 0.3404173208 | H163: 0.05910927863 | I163: 0.01341464647 | J163: 0.0252211201 | K163: 0.007785746098
A164: 8 | B164: Total Revenue per Therm at Current Rates | F164: =SUM(F161:F163) -> 0.8247347758 | G164: 1.02651452 | H164: 0.8050552134 | I164: 0.7212388678 | J164: 0.6577167005 | K164: 0.08426332555
B166: Cost per Unit at Current Rates
A167: 9 | B167: Commodity Cost per Therm | F167: 0.4259949698 | G167: 0.4828148185 | H167: 0.5228820943 | I167: 0.5255643852 | J167: 0.4810670826 | K167: 0.03039220467
A168: 10 | B168: Demand Cost per Peak Day Therms | F168: 26.66535336 | G168: 26.64948399 | H168: 33.15433585 | I168: 35.26357836 | J168: 26.36611322 | K168: 10.0938065
A169: 11 | B169: Customer Cost per Customer per Month | F169: 24.31978731 | G169: 22.98491955 | H169: 91.53645135 | I169: 228.9687316 | J169: 1172.471024 | K169: 522.1265097
B171: Cost by Classification at Uniform Current Return
A172: 12 | B172: Commodity | F172: =SUM(G172:K172) -> 86739972.93 | G172: 59125534.35 | H172: 23277713.47 | I172: 2807868.452 | J172: 519413.5135 | K172: 1009443.139
A173: 13 | B173: Demand | F173: =SUM(G173:K173) -> 37210226.77 | G173: 25342774.56 | H173: 9273059.912 | I173: 911696.1004 | J173: 151599.1122 | K173: 1531097.082
A174: 14 | B174: Customer | F174: =SUM(G174:K174) -> 45689357.78 | G174: 43161744.75 | H174: 2191589.074 | I174: 58114.74993 | J174: 23500.2899 | K174: 254408.9112
A175: 15 | B175: Total Uniform Current Cost | F175: =SUM(F172:F174) -> 169639557.5 | G175: 127630053.7 | H175: 34742362.45 | I175: 3777679.302 | J175: 694512.9156 | K175: 2794949.132
B177: Cost per Therm at Current Return
A178: 16 | B178: Commodity | F178: 0.4217027749 | G178: 0.4897676217 | H178: 0.4896727892 | I178: 0.4895990125 | J178: 0.4655477739 | K178: 0.03300969494
A179: 17 | B179: Demand | F179: 0.1809045513 | G179: 0.2099274123 | H179: 0.1950692072 | I179: 0.1589695237 | J179: 0.1358775376 | K179: 0.05006824618
A180: 18 | B180: Customer | F180: 0.2221274495 | G180: 0.357531231 | H180: 0.04610253219 | I180: 0.01013328248 | J180: 0.02106319409 | K180: 0.008319399304
A181: 19 | B181: Total Cost per Therm at Current Return | F181: =SUM(F178:F180) -> 0.8247347758 | G181: 1.057226265 | H181: 0.7308445286 | I181: 0.6587018186 | J181: 0.6224885055 | K181: 0.09139734043
B183: Cost per Unit at Uniform Current Return
A184: 20 | B184: Commodity Cost per Therm | F184: 0.4217027749 | G184: 0.4897676217 | H184: 0.4896727892 | I184: 0.4895990125 | J184: 0.4655477739 | K184: 0.03300969494
A185: 21 | B185: Demand Cost per Peak Day Therms | F185: 26.27158975 | G185: 27.52062024 | H185: 28.99344867 | I185: 30.75737572 | J185: 23.65844336 | K185: 10.96615121
A186: 22 | B186: Customer Cost per Customer per Month | F186: 25.1115486 | G186: 24.14044785 | H186: 71.39424288 | I186: 172.9605653 | J186: 979.178746 | K186: 557.914279
A188: 23 | B188: Revenue to Cost Ratio at Current Rates | F188: =F158/F175 -> 1 | G188: 0.9709506417 | H188: 1.101541001 | I188: 1.094939846 | J188: 1.056592523 | K188: 0.9219450495
B191: Cost by Classification at Proposed Return by Schedule
A192: 24 | B192: Commodity | F192: =SUM(G192:K192) -> 90779532.54 | G192: 60509699.95 | H192: 25498226.7 | I192: 3077439 | J192: 548105.4887 | K192: 1146061.406
A193: 25 | B193: Demand | F193: =SUM(G193:K193) -> 40826991.87 | G193: 26673556.46 | H193: 11147517.67 | I193: 1086492.971 | J193: 180442.962 | K193: 1738981.805
A194: 26 | B194: Customer | F194: =SUM(G194:K194) -> 50053948.9 | G194: 46594694.93 | H194: 3063027.339 | I194: 82759.6208 | J194: 31216.70295 | K194: 282250.3053
A195: 27 | B195: Total Proposed Rate Revenue | F195: =SUM(F192:F194) -> 181660473.3 | G195: 133777951.3 | H195: 39708771.71 | I195: 4246691.592 | J195: 759765.1536 | K195: 3167293.516
B197: Revenue per Therm at Proposed Rates
A198: 28 | B198: Commodity | F198: 0.4413418576 | G198: 0.5012333869 | H198: 0.5363837734 | I198: 0.5366031641 | J198: 0.4912642499 | K198: 0.03747723465
A199: 29 | B199: Demand | F199: 0.1984881385 | G199: 0.2209509724 | H199: 0.2345005268 | I199: 0.1894482933 | J199: 0.1617301381 | K199: 0.05686626286
A200: 30 | B200: Customer | F200: 0.2433467343 | G200: 0.3859681468 | H200: 0.06443421268 | I200: 0.01443052953 | J200: 0.0279793771 | K200: 0.009229837831
A201: 31 | B201: Total Revenue per Therm at Proposed Rates | F201: =SUM(F198:F200) -> 0.8831767304 | G201: 1.108152506 | H201: 0.8353185129 | I201: 0.7404819868 | J201: 0.6809737651 | K201: 0.1035733353
B203: Cost per Unit at Proposed Rates
A204: 32 | B204: Commodity Cost per Therm | F204: 0.4413418576 | G204: 0.5012333869 | H204: 0.5363837734 | I204: 0.5366031641 | J204: 0.4912642499 | K204: 0.03747723465
A205: 33 | B205: Demand Cost per Peak Day Therms | F205: 28.82513959 | G205: 28.96576363 | H205: 34.85418885 | I205: 36.6543989 | J205: 28.15979286 | K205: 12.45508052
A206: 34 | B206: Customer Cost per Customer per Month | F206: 27.51039261 | G206: 26.06050357 | H206: 99.78262823 | I206: 246.3083952 | J206: 1300.695956 | K206: 618.9699678
B208: Cost by Classification at Uniform Proposed Return
A209: 35 | B209: Commodity | F209: =SUM(G209:K209) -> 90010414.86 | G209: 61244124.53 | H209: 24111964.76 | I209: 2908515.079 | J209: 533442.2913 | K209: 1212368.197
A210: 36 | B210: Demand | F210: =SUM(G210:K210) -> 40337132.25 | G210: 27375471.08 | H210: 9978932.709 | I210: 977101.8937 | J210: 165749.8591 | K210: 1839876.706
A211: 37 | B211: Customer | F211: =SUM(G211:K211) -> 51312926.22 | G211: 48402437.2 | H211: 2520084.406 | I211: 67347.54999 | J211: 27288.14589 | K211: 295768.9159
A212: 38 | B212: Total Uniform Proposed Cost | F212: =SUM(F209:F211) -> 181660473.3 | G212: 137022032.8 | H212: 36610981.87 | I212: 3952964.523 | J212: 726480.2962 | K212: 3348013.819
B214: Cost per Therm at Proposed Return
A215: 39 | B215: Commodity | F215: 0.4376026466 | G215: 0.5073170086 | H215: 0.5072222 | I215: 0.507148442 | J215: 0.4781216983 | K215: 0.03964552612
A216: 40 | B216: Demand | F216: 0.1961065934 | G216: 0.2267652971 | H216: 0.2099180325 | I216: 0.170374122 | J216: 0.1485607823 | K216: 0.06016561651
A217: 41 | B217: Customer | F217: 0.2494674905 | G217: 0.4009426183 | H217: 0.05301279964 | I217: 0.0117431762 | J217: 0.02445823076 | K217: 0.009671908507
A218: 42 | B218: Total Cost per Therm at Proposed Return | F218: =SUM(F215:F217) -> 0.8831767305 | G218: 1.135024924 | H218: 0.7701530322 | I218: 0.6892657402 | J218: 0.6511407114 | K218: 0.1094830511
B220: Cost per Unit at Uniform Proposed Return
A221: 43 | B221: Commodity Cost per Therm | F221: 0.4376026466 | G221: 0.5073170086 | H221: 0.5072222 | I221: 0.507148442 | J221: 0.4781216983 | K221: 0.03964552612
A222: 44 | B222: Demand Cost per Peak Day Therms | F222: 28.47928331 | G222: 29.72799769 | H222: 31.20045335 | I222: 32.96393398 | J222: 25.86679827 | K222: 13.17771839
A223: 45 | B223: Customer Cost per Customer per Month | F223: 28.20234522 | G223: 27.07157734 | H223: 82.0954623 | I223: 200.4391369 | J223: 1137.006079 | K223: 648.6160436
A225: 46 | B225: Revenue to Cost Ratio at Proposed Rates | F225: =F195/F212 -> 0.9999999999 | G225: 0.9763243808 | H225: 1.084613678 | I225: 1.074305516 | J225: 1.0458166 | K225: 0.9460216377
A227: 47 | B227: Current Revenue to Proposed Cost Ratio | F227: =F158/F212 -> 0.9338275651 | G227: =G158/G212 -> 0.9043982195 | H227: =H158/H212 -> 1.045318501 | I227: 1.046387229 | J227: 1.010099183 | K227: 0.7696472164
K229: Page 3 of 4
B231: =$B$3 -> Sumcost | C231: =$C$3 -> AVISTA UTILITIES | I231: =$I$3 -> Natural Gas Utility
B232: =$B$4 -> Company Base Case UG-15____ | C232: Customer Cost Analysis | I232: =$I$4 -> Washington Jurisdiction
C233: =$C$5 -> For the Twelve Months Ended September 30, 2014
B235: =$B$7 -> (b) | C235: =$C$7 -> (c) | D235: =$D$7 -> (d) | E235: =$E$7 -> (e) | F235: =$F$7 -> (f) | G235: =$G$7 -> (g) | H235: =$H$7 -> (h) | I235: =$I$7 -> (i) | J235: =$J$7 -> (j) | K235: =$K$7 -> (k)
F236: =$F$8 ->  | G236: =$G$8 -> General | H236: =$H$8 -> Large General | I236: =$I$8 -> High Load Factor | J236: =$J$8 -> Interruptible | K236: =$K$8 -> Transportation
F237: =$F$9 -> System | G237: =$G$9 -> Service | H237: =$H$9 -> Service | I237: =$I$9 -> Lg. Gen. Service | J237: =$J$9 -> Service | K237: =$K$9 -> Service
B238: =$B$10 -> Description | F238: =$F$10 -> Total | G238: =$G$10 -> Sch 101 | H238: =$H$10 -> Sch 111/112 | I238: =$I$10 -> Sch 121/122 | J238: =$J$10 -> Sch 131/132 | K238: =$K$10 -> Sch 146
B239: Meter, Services, Meter Reading & Billing Costs by Schedule at Requested Rate of Return
B241: Rate Base
A242: 1 | B242: Services | F242: =SUM(G242:Q242) -> 112525000 | G242: 110141996.8 | H242: 2123082.125 | I242: 62758.00908 | J242: 4482.714934 | K242: 192680.324
A243: 2 | B243: Services Accum. Depr. | F243: =SUM(G243:Q243) -> -46500000 | G243: -45515244.19 | H243: -877345.646 | I243: -25934.21393 | J243: -1852.443852 | K243: -79623.50646
A244: 3 | B244: Total Services | F244: =SUM(F242:F243) -> 66025000 | G244: =SUM(G242:G243) -> 64626752.64 | H244: 1245736.479 | I244: 36823.79515 | J244: 2630.271082 | K244: 113056.8175
A246: 4 | B246: Meters | F246: =SUM(G246:Q246) -> 44243000 | G246: 37902911.47 | H246: 5438129.513 | I246: 141913.8398 | J246: 69937.06176 | K246: 690108.1172
A247: 5 | B247: Meters Accum. Depr. | F247: =SUM(G247:Q247) -> -9621000 | G247: -8242296.21 | H247: -1182565.469 | I247: -30860.31807 | J247: -15208.3826 | K247: -150069.6199
A248: 6 | B248: Total Meters | F248: =SUM(F246:F247) -> 34622000 | G248: =SUM(G246:G247) -> 29660615.26 | H248: 4255564.044 | I248: 111053.5217 | J248: 54728.67917 | K248: 540038.4972
... 25 more rows
